bitfinex/quotes_ETHUSD_20240612
["timestamp","ask_amount","ask_price","bid_price","bid_amount"]
[1718203024377,17.70379002,3642.8,3642.7,2.74519]
[1718203025679,27.85335575,3642.8,3642.7,2.74519]
[1718203026188,29.57928488,3642.8,3642.7,2.74519]
[1718203026973,27.85341821,3642.8,3642.7,2.74519]
[1718203027176,25.10827821,3642.8,3642.7,2.74519]
[1718203028824,17.91457821,3642.8,3642.7,2.74519]
[1718203029719,13.52043821,3642.8,3642.7,2.74519]
[1718203029893,10.41087702,3642.8,3642.7,2.74519]
[1718203030216,15.18836686,3642.8,3642.7,3.019709]
[1718203030418,7.17858514,3642.8,3642.7,3.019709]
[1718203031119,5.74514,3642.8,3642.7,3.019709]
[1718203032194,7.17858514,3642.8,3642.7,2.74519]
[1718203033231,13.21999314,3642.8,3642.7,2.74519]
[1718203033388,16.4521965,3642.8,3642.7,2.74519]
[1718203033823,13.69449167,3642.8,3642.7,2.74519]
[1718203034825,16.45211521,3642.8,3642.7,2.74519]
[1718203035328,13.51022221,3642.8,3642.7,2.74519]
[1718203035487,10.75259867,3642.8,3642.7,2.74519]
[1718203035693,10.75261342,3642.8,3642.7,2.74519]
[1718203035890,7.17858514,3642.8,3642.7,2.74519]
[1718203037310,11.92733914,3642.8,3642.7,2.74519]
[1718203038329,13.72005741,3642.8,3642.7,2.74519]
[1718203038530,7.17858514,3642.8,3642.7,2.74519]
[1718203039527,13.10985514,3642.8,3642.7,2.74519]
[1718203039715,12.49400182,3642.8,3642.7,2.74519]
[1718203040035,15.25150976,3642.8,3642.7,2.74519]
[1718203040190,12.50636976,3642.8,3642.7,2.74519]
[1718203040529,11.30540876,3642.8,3642.7,2.74519]
[1718203040730,3.47452468,3642.8,3642.7,2.74519]
[1718203040937,2.75750794,3642.9,3642.7,3.019709]
[1718203041232,2.75750794,3643.0,3642.7,3.019709]
[1718203041402,3.0,3643.3,3642.7,3.019709]
[1718203042527,3.0,3643.4,3642.7,3.019709]
[1718203042727,4.43344514,3643.4,3642.7,3.019709]
[1718203042911,7.66547776,3643.4,3642.8,1.0206609]
[1718203043117,4.90796982,3643.4,3642.9,8.2353]
[1718203044154,4.43344514,3643.4,3642.9,8.2353]
[1718203044373,4.90790048,3643.4,3642.9,8.2353]
[1718203044668,4.43344514,3643.4,3642.9,8.2353]
[1718203044815,2.75691978,3643.3,3642.9,8.2353]
[1718203045211,4.43344514,3643.2,3642.9,8.2353]
[1718203046134,2.74491,3643.1,3642.9,8.2353]
[1718203046342,4.43344514,3643.0,3642.9,8.2353]
[1718203048813,4.43344514,3643.0,3642.9,9.0862819]
[1718203048814,3.0,3643.0,3642.9,9.0862819]
[1718203049017,3.0,3643.3,3642.9,9.0862819]
[1718203049250,4.43344514,3643.3,3642.9,9.0862819]
[1718203050743,3.0,3643.3,3642.9,9.0862819]
[1718203051058,3.0,3643.3,3643.1,7.4644]
[1718203051240,3.0,3643.5,3643.2,8.2349]
[1718203051560,1.43344514,3643.5,3643.2,8.2349]
[1718203053251,1.43846831,3643.8,3643.3,0.0548926]
[1718203053418,1.43344514,3643.8,3643.4,9.81001926]
[1718203053619,1.43344514,3643.8,3643.4,8.2346]
[1718203054833,1.43344514,3643.7,3643.4,8.2346]
[1718203055036,2.74453,3643.6,3643.4,8.2346]
[1718203055352,1.43344514,3643.5,3643.4,8.2346]
[1718203055543,7.86903914,3643.5,3643.4,8.2346]
[1718203055934,10.86903914,3643.5,3643.4,8.2346]
[1718203056129,12.66140049,3643.5,3643.4,8.2346]
[1718203056319,11.34351927,3643.5,3643.4,8.2346]
[1718203057020,4.90792527,3643.5,3643.4,8.2346]
[1718203057221,6.22580649,3643.5,3643.4,8.2346]
[1718203057462,38.51944949,3643.5,3643.4,8.2346]
[1718203057756,38.64003658,3643.5,3643.4,8.2346]
[1718203057960,36.76520658,3643.5,3643.4,8.2346]
[1718203058254,35.32673827,3643.5,3643.4,8.2346]
[1718203058461,35.87673827,3643.5,3643.4,8.2346]
[1718203058854,14.16762527,3643.5,3643.4,8.2346]
[1718203059161,50.02491827,3643.5,3643.4,8.2346]
[1718203062460,51.75003106,3643.5,3643.4,8.2346]
[1718203062960,50.02491827,3643.5,3643.4,8.2346]
[1718203063354,51.75005231,3643.5,3643.4,8.2346]
[1718203064261,44.13935231,3643.5,3643.4,8.2346]
[1718203064501,30.86108327,3643.5,3643.4,7.86468632]
[1718203064781,13.77582527,3643.5,3643.4,7.17468632]
[1718203064944,49.63311827,3643.5,3643.4,7.05466632]
[1718203065148,51.64584613,3643.5,3643.4,7.05466632]
[1718203065347,49.63311827,3643.5,3643.4,7.05466632]
[1718203065542,30.86741927,3643.5,3643.4,7.05466632]
[1718203065865,6.55692527,3643.5,3643.4,7.05466632]
[1718203066047,27.13178027,3643.5,3643.4,7.05466632]
[1718203066392,26.78873627,3643.5,3643.4,7.05466632]
[1718203067672,10.34146852,3643.5,3643.4,7.05466632]
[1718203067848,11.24063681,3643.5,3643.4,7.05466632]
[1718203068244,12.5585803,3643.5,3643.4,7.05466632]
[1718203068582,9.47217001,3643.5,3643.4,7.05466632]
[1718203069086,12.47217001,3643.5,3643.4,7.05466632]
[1718203069507,11.15422652,3643.5,3643.4,7.05466632]
[1718203069851,12.59163681,3643.5,3643.4,7.05466632]
[1718203070190,11.15422652,3643.5,3643.4,7.05466632]
[1718203070751,12.59163681,3643.5,3643.4,7.05466632]
[1718203071391,11.15422652,3643.5,3643.4,7.05466632]
[1718203072066,4.90796152,3643.5,3643.4,7.05466632]
[1718203072482,20.90824852,3643.5,3643.4,7.05466632]
[1718203072697,12.52788952,3643.5,3643.4,7.05466632]
[1718203072987,13.06676253,3643.5,3643.4,7.05466632]
[1718203073419,11.74876952,3643.5,3643.4,7.05466632]
[1718203075009,6.55696152,3643.5,3643.4,7.05466632]
[1718203075163,6.08244514,3643.5,3643.4,7.05466632]
[1718203075500,43.15925316,3643.5,3643.4,7.05466632]
[1718203075663,43.63376954,3643.5,3643.4,7.05466632]
[1718203076084,7.10696152,3643.5,3643.4,7.01588334]
[1718203076407,44.502466,3643.5,3643.4,7.01588334]
[1718203076702,7.10696152,3643.5,3643.4,6.57588334]
[1718203076864,42.96425452,3643.5,3643.4,6.43588334]
[1718203077764,42.96425452,3643.5,3643.4,5.91264934]
[1718203078165,42.96425452,3643.5,3643.4,5.30264934]
[1718203079000,40.34104752,3643.5,3643.4,5.30264934]
[1718203079361,31.13583952,3643.5,3643.4,5.30264934]
[1718203080886,37.96543952,3643.5,3643.4,5.08831934]
[1718203081089,37.49092314,3643.5,3643.4,5.08831934]
[1718203081278,37.96548584,3643.5,3643.4,5.08831934]
[1718203081988,37.96548584,3643.5,3643.4,4.48831934]
[1718203082169,37.49092314,3643.5,3643.4,3.50971934]
[1718203082376,37.96551714,3643.5,3643.4,3.50971934]
[1718203082573,37.96551714,3643.5,3643.4,3.16970934]
[1718203082805,37.96551714,3643.5,3642.1,7.49]
[1718203082806,2.74552,3642.3,3642.1,7.49]
[1718203083075,1.43344514,3642.2,3641.7,7.2329]
[1718203083405,22.45199714,3642.2,3641.8,6.21489]
[1718203083579,4.43344514,3642.2,3641.8,6.21489]
[1718203085921,1.43344514,3642.2,3641.8,6.21489]
[1718203087223,5.74529,3642.6,3641.9,0.05491446]
[1718203087401,1.43344514,3642.5,3642.0,5.4915]
[1718203087730,4.43344514,3642.5,3642.2,7.2287]
[1718203087889,4.43344514,3642.5,3642.3,5.491]
[1718203088232,3.0,3642.4,3642.3,5.491]
[1718203088427,1.43344514,3642.4,3642.3,5.491]
[1718203089616,3.0,3642.4,3642.3,5.491]
[1718203089797,3.0,3643.1,3642.3,6.82566705]
[1718203090000,1.43344514,3643.0,3642.3,6.82566705]
[1718203094339,1.43344514,3643.0,3642.4,0.05490404]
[1718203094491,1.43344514,3643.0,3642.5,5.4907]
[1718203094692,1.43344514,3643.0,3642.6,0.05490024]
[1718203094891,1.43344514,3643.0,3642.7,0.55456002]
[1718203095301,1.43344514,3643.0,3642.8,5.4903]
[1718203095831,2.41335,3642.9,3642.8,5.4903]
[1718203096028,5.41335,3642.9,3642.8,5.4903]
[1718203097627,3.42987696,3642.9,3642.8,5.4903]
[1718203097831,2.47987796,3642.9,3642.8,5.4903]
[1718203098032,3.42987696,3642.9,3642.8,5.4903]
[1718203098331,5.47987796,3642.9,3642.8,5.4903]
[1718203098517,3.42987696,3642.9,3642.8,5.4903]
[1718203098699,0.42987696,3642.9,3642.8,6.094786]
[1718203099121,3.42987696,3642.9,3642.8,6.094786]
[1718203099324,0.42987696,3642.9,3642.8,6.094786]
[1718203102625,0.42987696,3642.9,3642.8,5.4903]
[1718203102893,1.8633221,3642.9,3642.8,5.4903]
[1718203103120,4.8633221,3642.9,3642.8,5.4903]
[1718203103444,19.53445356,3642.9,3642.8,5.4903]
[1718203103997,21.18345356,3642.9,3642.8,5.4903]
[1718203105840,21.18345356,3642.9,3642.8,5.4903]
[1718203107536,22.90967979,3642.9,3642.8,5.4903]
[1718203108140,23.45967979,3642.9,3642.8,5.4903]
[1718203110444,21.73345356,3642.9,3642.8,5.4903]
[1718203110611,21.18345356,3642.9,3642.8,5.4903]
[1718203112146,21.73345356,3642.9,3642.8,5.4903]
[1718203112302,7.53687756,3642.9,3642.8,5.4903]
[1718203112843,40.62289956,3642.9,3642.8,5.4903]
[1718203115045,39.50517556,3642.9,3642.8,5.4903]
[1718203115649,39.50521663,3642.9,3642.8,5.4903]
[1718203116917,41.23144286,3642.9,3642.8,5.4903]
[1718203118013,39.50524507,3642.9,3642.8,5.4903]
[1718203118217,40.80143701,3642.9,3642.8,5.4903]
[1718203118517,16.5357933,3642.9,3642.8,3.60197025]
[1718203118744,5.49098,3642.4,3641.0,7.0369]
[1718203119045,5.49098,3642.4,3640.0,7.8509]
[1718203119046,2.74656,3641.0,3640.0,7.8509]
[1718203119208,2.74656,3641.0,3640.1,1.70061374]
[1718203119413,2.74665,3640.8,3640.0,7.0369]
[1718203119708,1.43344514,3640.7,3640.0,7.0369]
[1718203120048,2.74706,3640.3,3640.0,7.0369]
[1718203120345,1.43344514,3640.2,3640.0,7.0369]
[1718203120518,4.43344514,3640.2,3640.0,7.0369]
[1718203122655,4.43344514,3640.2,3640.1,5.4944]
[1718203123151,12.80897214,3640.2,3640.1,5.4944]
[1718203124010,9.02875114,3640.2,3640.1,5.4944]
[1718203124210,7.24244514,3640.2,3640.1,5.4944]
[1718203135669,13.04444514,3640.2,3640.1,3.656435]
[1718203135839,14.00352314,3640.2,3640.1,3.245415]
[1718203136034,50.33580867,3640.2,3640.1,3.245415]
[1718203136457,50.33582137,3640.2,3640.1,3.245415]
[1718203137144,50.61072137,3640.2,3640.1,3.026535]
[1718203137478,50.61072137,3640.2,3640.1,5e-06]
[1718203138272,50.61077797,3640.2,3640.1,5e-06]
[1718203138693,53.61077934,3640.2,3640.1,5e-06]
[1718203138836,18.03926716,3640.2,3640.1,5e-06]
[1718203139032,17.56420396,3640.2,3640.1,5e-06]
[1718203139281,17.56420396,3640.2,3638.0,7.49]
[1718203139282,1.649,3638.8,3636.9,7.2195]
[1718203139575,1.649,3638.8,3636.6,7.92033802]
[1718203139576,1.649,3638.6,3637.0,6.898574]
[1718203139746,1.649,3638.6,3637.2,6.8436]
[1718203139747,1.43344514,3638.5,3637.2,6.8436]
[1718203139947,1.43344514,3638.5,3637.4,6.8436]
[1718203140146,2.74819,3638.8,3637.7,6.8436]
[1718203140470,1.43344514,3638.7,3637.8,5.4978]
[1718203140668,2.7488,3638.0,3637.8,5.4978]
[1718203140881,1.43344514,3637.9,3637.8,5.4978]
[1718203141265,1.649,3638.8,3637.8,6.04758]
[1718203141436,1.43344514,3638.7,3637.9,0.05496841]
[1718203141636,1.43344514,3638.7,3638.0,12.9147]
[1718203141869,1.43344514,3638.7,3638.1,0.05496746]
[1718203142173,2.74856,3638.3,3638.2,5.4972]
[1718203142333,5.83100514,3638.3,3638.2,5.4972]
[1718203142535,41.38713714,3638.3,3638.2,5.4972]
[1718203142737,5.83100514,3638.3,3638.2,5.4972]
[1718203142935,41.13902914,3638.3,3638.2,5.4972]
[1718203143174,5.83100514,3638.3,3638.2,5.4972]
[1718203143486,44.98685814,3638.3,3638.2,5.4972]
[1718203143639,9.12956514,3638.3,3638.2,5.4972]
[1718203143833,44.98685814,3638.3,3638.2,5.4972]
[1718203144151,2.74932,3637.3,3636.4,0.0133]
[1718203144356,1.43344514,3637.2,3636.4,0.0133]
[1718203144672,1.43344514,3637.2,3636.5,5.4993]
[1718203144844,1.649,3637.7,3636.5,5.4993]
[1718203144845,2.74906,3637.7,3636.6,0.60624484]
[1718203145039,1.43344514,3637.6,3636.7,5.4995]
[1718203145341,2.74916,3637.5,3636.8,0.05498268]
[1718203145566,1.43344514,3637.4,3636.9,5.4992]
[1718203146476,2.74951,3637.0,3636.9,5.4992]
[1718203146779,2.74927,3637.4,3636.9,6.104246]
[1718203147075,1.43344514,3637.3,3636.9,6.104246]
[1718203149772,4.43344514,3637.3,3636.9,6.104246]
[1718203149969,3.08244514,3637.0,3636.4,0.0133]
[1718203150173,1.649,3636.5,3636.4,0.0133]
[1718203150377,3.08244514,3636.5,3636.4,0.0133]
[1718203150551,7.73662914,3636.5,3636.4,0.0133]
[1718203150757,3.0,3636.5,3636.4,0.0133]
[1718203151079,1.32059623,3636.8,3636.4,0.0133]
[1718203151080,2.74971,3636.8,3636.4,0.0133]
[1718203151239,2.74982,3636.6,3636.4,0.0133]
[1718203151440,1.43344514,3636.5,3636.4,0.0133]
[1718203151640,4.43344514,3636.5,3636.4,0.0133]
[1718203151941,8.43697514,3636.5,3636.4,0.0133]
[1718203152907,8.43697514,3636.5,3633.0,10.59335142]
[1718203152908,2.75086,3635.3,3633.0,10.59335142]
[1718203153065,4.43344514,3635.2,3634.0,0.05502184]
[1718203153398,4.43344514,3635.2,3634.2,7.2746]
[1718203153708,4.43344514,3635.2,3634.3,7.055997]
[1718203155161,2.75098,3635.1,3634.3,7.055997]
[1718203155359,1.43344514,3635.0,3634.3,7.055997]
[1718203156653,3.0,3635.2,3634.4,0.05502123]
[1718203156848,1.43344514,3635.2,3634.5,5.5028]
[1718203157189,3.0,3635.4,3634.6,0.76608892]
[1718203157389,1.43344514,3635.3,3634.7,5.5025]
[1718203160697,3.0,3635.4,3634.7,5.5025]
[1718203160698,4.40018,3634.8,3634.7,5.5025]
[1718203160991,5.83362514,3634.8,3634.7,5.5025]
[1718203161167,19.78831814,3634.8,3634.7,5.5025]
[1718203161558,30.26408114,3634.8,3634.7,5.5025]
[1718203161759,25.23540314,3634.8,3634.7,5.5025]
[1718203162092,25.43107114,3634.8,3634.7,5.5025]
[1718203162278,24.24585614,3634.8,3634.7,5.5025]
[1718203162686,17.18545614,3634.8,3634.7,5.5025]
[1718203162871,15.11793214,3634.8,3634.7,5.5025]
[1718203163187,15.59784275,3634.8,3634.7,5.5025]
[1718203163386,16.14784275,3634.8,3634.7,5.5025]
[1718203164325,15.59784275,3634.8,3634.7,5.5025]
[1718203164477,15.59784275,3634.8,3632.5,0.0453]
[1718203164478,1.649,3633.6,3632.5,0.0453]
[1718203164682,2.75245,3633.2,3632.5,0.0453]
[1718203164879,1.43344514,3633.2,3632.5,0.0453]
[1718203165127,3.0,3633.5,3632.6,5.5053]
[1718203165312,3.0,3633.5,3632.7,5.59512734]
[1718203165625,3.0,3633.9,3632.9,2.7526]
[1718203165844,3.0,3634.2,3633.1,2.7524]
[1718203165989,1.43344514,3634.1,3633.2,5.5048]
[1718203166590,1.43344514,3634.1,3633.3,2.80731475]
[1718203166915,1.32081601,3634.8,3633.5,2.75213]
[1718203166916,2.75131,3634.7,3633.5,2.75213]
[1718203167125,1.43344514,3634.6,3633.6,5.55922999]
[1718203167431,1.43344514,3634.6,3633.7,2.75197]
[1718203167604,1.43344514,3634.6,3633.8,5.5589273]
[1718203167811,1.38344514,3634.6,3633.9,0.83108973]
[1718203168008,1.38344514,3634.6,3634.0,5.5036]
[1718203168347,1.38344514,3634.6,3634.1,0.05502734]
[1718203168492,1.38344514,3634.6,3634.2,5.5033]
[1718203168693,5.72087766,3635.3,3634.3,0.05502576]
[1718203168994,1.43344514,3635.2,3634.4,5.503]
[1718203169535,1.43344514,3635.2,3634.5,0.05502324]
[1718203169708,4.43344514,3635.2,3634.6,5.5027]
[1718203170034,1.43344514,3635.2,3634.7,0.0550196]
[1718203170196,1.43344514,3635.2,3634.8,5.5024]
[1718203171233,2.75096,3635.1,3634.8,5.5024]
[1718203171432,2.7511,3634.9,3634.8,5.5024]
[1718203171599,4.18454514,3634.9,3634.8,5.5024]
[1718203173202,5.5056228,3634.9,3634.8,5.5024]
[1718203173415,7.67612241,3634.9,3634.8,5.5024]
[1718203173607,9.27512241,3634.9,3634.8,5.5024]
[1718203173901,9.75062931,3634.9,3634.8,5.5024]
[1718203175940,12.50172931,3634.9,3634.8,5.5024]
[1718203176250,13.72334029,3634.9,3634.8,5.5024]
[1718203176646,20.32542629,3634.9,3634.8,5.5024]
[1718203177750,19.84991939,3634.9,3634.8,5.5024]
[1718203178069,23.07674389,3634.9,3634.8,5.5024]
[1718203178284,2.75224,3633.4,3632.6,7.49]
[1718203178561,2.75224,3633.4,3632.5,0.0453]
[1718203178562,1.43344514,3633.3,3632.5,0.0453]
[1718203178924,1.43344514,3633.3,3632.6,5.5052]
[1718203179246,1.43344514,3633.3,3632.7,0.55505]
[1718203179247,2.75504664,3633.3,3632.7,0.55505]
[1718203179560,1.43344514,3633.3,3632.8,5.5054]
[1718203179716,5.75243,3633.2,3632.8,5.5054]
[1718203179916,1.43344514,3633.1,3632.8,5.5054]
[1718203180115,1.3216015,3633.0,3632.8,5.5054]
[1718203180321,1.43344514,3632.9,3632.8,5.5054]
[1718203180556,2.75514717,3632.9,3632.8,5.5054]
[1718203180963,1.43344514,3632.9,3632.8,5.5054]
[1718203181322,2.75514717,3632.9,3632.8,5.5054]
[1718203181746,1.43344514,3632.9,3632.8,5.5054]
[1718203182529,1.79751476,3633.1,3632.8,6.06047]
[1718203182530,1.32170203,3633.1,3632.8,6.06047]
[1718203182737,1.32170203,3633.1,3632.8,5.5054]
[1718203182738,1.43344514,3633.0,3632.8,5.5054]
[1718203183325,1.32170203,3632.9,3632.8,5.5054]
[1718203183633,3.2309599,3632.9,3632.8,5.5054]
[1718203183851,1.43344514,3632.9,3632.8,5.5054]
[1718203184064,1.32170203,3633.0,3632.8,5.5054]
[1718203184218,1.32170203,3633.0,3632.9,0.55054]
[1718203184425,1.32170203,3633.0,3632.9,6.11078689]
[1718203184663,1.32170203,3633.4,3633.0,2.7525]
[1718203184821,1.79751476,3633.6,3633.1,5.55994207]
[1718203185027,1.32170203,3633.6,3633.2,2.75235]
[1718203185226,1.32170203,3633.6,3633.3,6.39086883]
[1718203186336,3.47581273,3634.0,3633.4,2.75222]
[1718203186337,1.32170203,3633.7,3633.4,2.75222]
[1718203186539,1.79751476,3633.8,3633.6,2.75209]
[1718203186740,1.79751476,3633.8,3633.7,5.504]
[1718203187041,1.32128935,3633.9,3633.7,6.329609]
[1718203187863,1.32128935,3633.9,3633.8,2.75194]
[1718203188042,1.32128935,3634.0,3633.8,15.06674]
[1718203188240,1.32128935,3634.1,3634.0,2.75178]
[1718203188549,1.32128935,3634.9,3634.0,8.25538]
[1718203188728,1.43344514,3634.8,3634.2,2.75162]
[1718203188924,1.43344514,3634.8,3634.3,5.55812327]
[1718203189378,5.75473449,3634.8,3634.3,5.55812327]
[1718203189675,4.32103908,3634.8,3634.4,2.75144]
[1718203189874,1.32103908,3634.9,3634.5,5.55782153]
[1718203190226,1.32103908,3634.9,3634.5,5.5028]
[1718203190783,1.32103908,3634.8,3634.5,5.5028]
[1718203191326,2.75448422,3634.8,3634.5,5.5028]
[1718203191865,7.18473514,3634.7,3634.5,5.5028]
[1718203192439,8.50577422,3634.7,3634.5,5.5028]
[1718203192858,0.47557407,3634.6,3634.5,5.5028]
[1718203193069,1.43344514,3634.6,3634.5,5.5028]
[1718203197282,3.0,3634.8,3634.5,5.5028]
[1718203197444,1.43344514,3634.8,3634.5,5.5028]
[1718203197768,3.0,3634.8,3634.5,5.5028]
[1718203197969,1.32103908,3635.1,3634.5,5.5028]
[1718203198279,1.43344514,3635.0,3634.5,5.5028]
[1718203198578,4.43344514,3635.0,3634.5,5.5028]
[1718203198965,4.43344514,3635.0,3634.6,0.05502068]
[1718203199287,4.43344514,3635.0,3634.7,5.5025]
[1718203199663,1.43344514,3635.0,3634.7,5.5025]
[1718203200359,1.32103908,3635.5,3635.0,2.75098]
[1718203200560,1.79630633,3635.8,3635.1,5.55691159]
[1718203200915,1.43344514,3635.7,3635.2,2.75087]
[1718203201206,1.32081348,3636.0,3635.3,5.55660875]
[1718203201356,1.43344514,3635.9,3635.3,5.55660875]
[1718203201557,8.81081348,3636.4,3635.3,5.5016]
[1718203201796,1.43344514,3636.3,3635.3,5.5016]
[1718203201977,1.43344514,3636.3,3635.3,6.05176]
[1718203202659,1.43344514,3636.3,3635.4,0.05500324]
[1718203202856,1.43344514,3636.3,3635.5,5.5013]
[1718203203079,1.43344514,3636.3,3635.6,2.80555324]
[1718203203265,1.43344514,3636.3,3635.7,5.501]
[1718203203564,4.43344514,3636.3,3635.7,5.501]
[1718203206116,4.43344514,3636.3,3635.8,0.05500187]
[1718203206288,1.43344514,3636.3,3635.9,5.5007]
[1718203206794,3.0,3636.6,3636.1,2.75019]
[1718203206958,1.43344514,3636.6,3636.2,5.5002]
[1718203207960,4.18337514,3636.5,3636.2,5.5002]
[1718203208168,3.0,3636.4,3636.2,5.5002]
[1718203208358,1.43344514,3636.3,3636.2,5.5002]
[1718203211308,1.40544514,3636.3,3636.2,5.5002]
[1718203211907,1.26744514,3636.3,3636.2,5.5002]
[1718203213914,3.0,3636.4,3636.2,5.5002]
[1718203214117,4.43344514,3636.4,3636.2,5.5002]
[1718203214411,3.0,3636.4,3636.2,5.5002]
[1718203214603,3.0,3636.8,3636.2,5.5002]
[1718203214773,1.43344514,3636.7,3636.2,5.5002]
[1718203214980,1.43344514,3636.7,3636.3,0.05499493]
[1718203215422,1.43344514,3636.7,3636.4,5.4999]
[1718203215606,3.0,3636.8,3636.4,5.4999]
[1718203215776,10.23941,3637.2,3636.4,6.324907]
[1718203215981,1.43344514,3637.1,3636.4,6.324907]
[1718203217225,0.02895436,3637.0,3636.4,5.4999]
[1718203217389,2.74969,3636.8,3636.4,5.4999]
[1718203217715,4.43344514,3636.7,3636.4,5.4999]
[1718203218391,2.74982,3636.6,3636.4,5.4999]
[1718203218626,4.4623995,3636.5,3636.4,5.4999]
[1718203219213,6.6633995,3636.5,3636.4,5.4999]
[1718203219857,7.13885928,3636.5,3636.4,5.4999]
[1718203220059,8.45912326,3636.5,3636.4,5.4999]
[1718203220262,14.34918426,3636.5,3636.4,5.4999]
[1718203220464,7.13885928,3636.5,3636.4,5.4999]
[1718203222054,8.45958678,3636.5,3636.4,5.4999]
[1718203222239,7.13885928,3636.5,3636.4,5.4999]
[1718203222417,8.45956725,3636.5,3636.4,5.4999]
[1718203222816,4.90890492,3636.5,3636.4,5.4999]
[1718203223114,4.43344514,3636.5,3636.4,6.04989]
[1718203223561,4.43344514,3636.5,3636.4,5.4999]
[1718203228062,1.43344514,3636.5,3636.4,5.4999]
[1718203228274,3.0,3636.5,3636.4,5.4999]
[1718203228577,1.43344514,3636.5,3636.4,5.4999]
[1718203228794,3.08444514,3636.5,3636.4,5.4999]
[1718203229131,6.08444514,3636.5,3636.4,5.4999]
[1718203229583,6.55979166,3636.5,3636.4,5.4999]
[1718203229736,15.83030666,3636.5,3636.4,5.4999]
[1718203229938,6.55979166,3636.5,3636.4,5.4999]
[1718203230132,16.87089566,3636.5,3636.4,5.4999]
[1718203230351,13.77089566,3636.5,3636.4,5.4999]
[1718203230568,16.60889566,3636.5,3636.4,5.4999]
[1718203230774,13.21148466,3636.5,3636.4,5.4999]
[1718203231232,12.92006966,3636.5,3636.4,5.4999]
[1718203231433,11.10655866,3636.5,3636.4,5.4999]
[1718203232632,9.13057866,3636.5,3636.4,5.4999]
[1718203233446,10.276743,3636.5,3636.4,5.4999]
[1718203235352,9.13057866,3636.5,3636.4,5.4999]
[1718203236158,9.13057866,3636.5,3634.8,2.75114]
[1718203236159,1.651,3635.4,3634.5,1.957]
[1718203236470,2.75116,3634.9,3634.5,1.957]
[1718203236678,1.4623995,3635.3,3634.0,10.04356]
[1718203236679,2.75147,3634.5,3634.0,7.2918]
[1718203237003,1.43344514,3634.4,3634.1,0.05502833]
[1718203237182,3.0,3634.8,3634.2,0.73468283]
[1718203237374,1.43344514,3634.7,3634.3,0.05502362]
[1718203239367,1.43344514,3634.7,3634.2,0.73468283]
[1718203239368,1.43344514,3634.7,3634.0,10.04356]
[1718203240263,1.43344514,3634.7,3634.1,0.05502422]
[1718203240758,1.43344514,3634.7,3634.2,5.503]
[1718203240971,1.43344514,3634.7,3634.3,1.61518257]
[1718203241168,1.43344514,3634.7,3634.4,5.503]
[1718203245064,2.75247,3633.1,3632.5,0.0453]
[1718203245290,2.75224,3633.4,3632.6,0.62126666]
[1718203245486,4.25581154,3633.3,3632.7,0.15158838]
[1718203245661,3.0,3633.3,3632.7,5.5051]
[1718203247500,4.43344514,3633.3,3632.7,5.5051]
[1718203249319,2.75247,3633.1,3632.7,5.5051]
[1718203249515,4.18591514,3633.1,3632.7,5.5051]
[1718203249726,4.18591514,3633.1,3632.7,6.335435]
[1718203249929,2.75247,3633.1,3632.7,6.335435]
[1718203250324,5.75227,3633.4,3632.7,6.335435]
[1718203250523,1.43344514,3633.3,3632.7,6.335435]
[1718203250918,2.75269,3632.8,3632.7,5.5051]
[1718203251117,7.18613514,3632.8,3632.7,5.5051]
[1718203253702,3.0,3632.8,3632.7,5.5051]
[1718203253908,3.0,3633.0,3632.7,5.5051]
[1718203254222,3.0,3633.0,3632.7,6.06014]
[1718203257077,2.75226,3633.4,3632.7,6.06014]
[1718203257219,4.43344514,3633.3,3632.8,0.05504594]
[1718203257556,4.43344514,3633.3,3632.9,5.5052]
[1718203257931,3.0,3633.3,3633.0,0.05504621]
[1718203258125,3.0,3633.6,3633.1,5.5049]
[1718203258345,1.43344514,3633.5,3633.1,5.5049]
[1718203258851,2.75203,3633.7,3633.2,0.05504328]
[1718203259149,1.43344514,3633.6,3633.3,5.5046]
[1718203260242,4.43344514,3633.6,3633.3,5.5046]
[1718203261524,3.0,3633.6,3633.3,5.5046]
[1718203261836,2.75182,3634.0,3633.3,5.5046]
[1718203261837,3.0,3633.9,3633.3,5.5046]
[1718203262143,1.43344514,3633.8,3633.3,5.5046]
[1718203262451,1.43344514,3633.8,3633.4,0.05504032]
[1718203262753,1.43344514,3633.8,3633.5,5.5043]
[1718203262949,3.0,3633.9,3633.5,5.5043]
[1718203263151,4.43344514,3633.9,3633.5,5.5043]
[1718203264161,3.0,3633.8,3633.5,5.5043]
[1718203264475,1.4623995,3633.7,3633.5,5.5043]
[1718203264682,4.2144095,3633.7,3633.5,5.5043]
[1718203264973,3.0,3633.6,3633.5,5.5043]
[1718203265179,4.43344514,3633.6,3633.5,5.5043]
[1718203267090,5.7548167,3633.6,3633.5,5.5043]
[1718203268073,4.43344514,3633.6,3633.5,5.5043]
[1718203270448,4.98344514,3633.6,3633.5,5.5043]
[1718203270879,11.46290814,3633.6,3633.5,5.5043]
[1718203271203,11.93862233,3633.6,3633.5,5.5043]
[1718203272497,11.93878107,3633.6,3633.5,5.5043]
[1718203274472,11.48425807,3633.6,3633.5,5.5043]
[1718203274697,5.45931807,3633.6,3633.5,5.5043]
[1718203276086,4.90931807,3633.6,3633.5,5.5043]
[1718203276596,1.90931807,3633.6,3633.5,5.5043]
[1718203276795,2.75502017,3633.6,3633.5,5.5043]
[1718203277010,1.43344514,3633.6,3633.5,5.5043]
[1718203277373,1.32157503,3633.7,3633.5,6.05473]
[1718203277575,1.32157503,3633.8,3633.5,6.05473]
[1718203277816,1.43344514,3633.8,3633.5,6.05473]
[1718203278114,4.07340503,3634.0,3633.5,6.05473]
[1718203278410,1.43344514,3633.9,3633.5,5.5043]
[1718203279189,4.43344514,3633.9,3633.5,5.5043]
[1718203280233,3.0,3633.9,3633.5,5.5043]
[1718203280530,1.32157503,3634.1,3633.5,5.5043]
[1718203280826,1.43344514,3634.0,3633.5,5.5043]
[1718203280992,4.43344514,3634.0,3633.5,5.5043]
[1718203282027,0.02895436,3633.9,3633.5,5.5043]
[1718203282324,2.75502017,3633.8,3633.5,5.5043]
[1718203282532,7.10258939,3633.7,3633.5,5.5043]
[1718203282831,1.43344514,3633.6,3633.5,5.5043]
[1718203283902,2.75502292,3633.6,3633.5,5.5043]